{"text_format":"3","workbook":"xlsx","n_sheets":6,"sheets":["questinario","Bearbeitung","Berechnung","guida","Sachbearbeiter","Textkonserven"],"not_rendered":{"images":3,"defined_names":4,"comments":1},"read":"whole","date_system":"1900"}

{"sheet":"questinario","index":0,"n_rows":114,"n_cols":18,"rows_kept":114,"merged":[[0,0,1,0],[0,1,0,2],[0,4,0,13],[1,1,1,13],[2,1,2,3],[2,11,2,13],[3,11,3,13],[4,0,10,0],[4,11,4,13],[5,10,5,13],[6,1,6,3],[6,4,6,5],[7,10,7,13],[8,10,8,13],[9,10,9,13],[10,1,10,13],[11,1,11,13],[12,2,12,13],[13,2,13,4],[13,5,13,7],[13,9,13,13],[14,2,14,4],[14,5,14,13],[15,2,15,4],[15,7,15,13],[16,2,16,4],[16,5,16,6],[16,9,16,13],[17,2,17,4],[17,5,17,9],[17,10,17,12],[18,2,18,4],[18,11,18,12],[19,2,19,4],[19,7,19,9],[19,12,19,13],[21,2,21,13],[22,2,22,4],[22,6,22,13],[25,2,25,5],[25,6,25,7],[25,10,25,11],[25,12,25,13],[26,2,26,9],[26,10,26,11],[26,12,26,13],[27,2,27,9],[27,10,27,11],[27,12,27,13],[28,2,28,9],[28,10,28,11],[28,12,28,13],[29,2,29,9],[29,10,29,11],[29,12,29,13],[30,2,30,9],[30,10,30,11],[30,12,30,13],[31,2,31,9],[31,10,31,11],[31,12,31,13],[32,2,32,4],[32,7,32,9],[32,12,32,13],[34,1,34,13],[35,2,35,7],[36,2,36,13],[37,2,37,13],[38,2,38,4],[38,7,38,9],[38,12,38,13],[40,1,40,12],[40,13,41,13],[41,2,41,12],[42,3,42,12],[43,3,43,12],[44,3,44,12],[45,3,45,12],[46,3,46,12],[47,3,47,12],[48,3,48,12],[49,3,49,12],[50,1,50,10],[51,2,51,12],[52,3,52,12],[53,3,53,12],[54,3,54,12],[55,3,55,12],[56,3,56,12],[57,3,57,12],[58,3,58,12],[59,3,59,12],[71,3,71,12],[72,3,72,12],[73,3,73,12],[74,3,74,12],[75,3,75,12],[76,3,76,12],[77,1,77,12],[78,2,78,12],[79,3,79,12],[80,3,80,12],[81,3,81,12],[82,3,82,4],[82,5,82,12],[83,3,83,4],[83,5,83,12],[84,3,84,4],[84,5,84,12],[85,3,85,4],[85,5,85,12],[86,3,86,12],[87,3,87,12],[88,1,88,12],[89,2,89,12],[90,3,90,4],[90,5,90,12],[91,3,91,4],[91,5,91,12],[92,3,92,4],[92,5,92,12],[93,3,93,4],[93,5,93,12],[94,3,94,4],[94,5,94,12],[95,3,95,4],[95,5,95,12],[96,3,96,4],[96,5,96,12],[97,3,97,4],[97,5,97,12],[98,3,98,4],[98,5,98,12],[99,3,99,4],[99,5,99,12],[100,3,100,4],[100,5,100,12],[101,3,101,4],[101,5,101,12],[102,3,102,4],[102,5,102,12],[103,3,103,4],[103,5,103,12],[104,3,104,4],[104,5,104,12],[105,3,105,4],[105,5,105,12],[106,3,106,12],[107,1,107,12],[108,1,108,10],[109,1,109,13],[111,1,111,13],[113,1,113,3],[113,4,113,5],[113,7,113,8],[113,10,113,11]]}
[{"$nulls":4},"Steuerverwaltung des Kantons Graubünden  \nAdministraziun da taglia dal Chantun Grischun     \nAmministrazione imposte del Cantone dei Grigioni "]
[null,"Abteilung Rechnungswesen, Steinbruchstrasse 18, CH-7001 Chur    "]
[{"$f":"Bearbeitung!A3","v":"rw"},"Incaricato/a:",null,null,{"$f":"VLOOKUP($A$3,Sachbearbeiter!$A:$E,2,FALSE)","v":"Rechnungswesen"},{"$nulls":5},"Tel:",{"$f":"VLOOKUP($A$3,Sachbearbeiter!$A:$E,3,FALSE)","v":"081 257 33 18"}]
[{"$f":"Bearbeitung!A4","v":"e"},"Mail:",null,null,{"$f":"VLOOKUP($A$3,Sachbearbeiter!$A:$E,5,FALSE)","v":"rechnungswesen@stv.gr.ch"},{"$nulls":5},"Fax:",{"$f":"VLOOKUP($A$3,Sachbearbeiter!$A:$E,4,FALSE)","v":"081 257 20 14"}]
[{"$nulls":10},"Data:"]
[]
[null,{"$f":"VLOOKUP(A4,Textkonserven!A:D,4,FALSE)","v":"Registro n."},{"$nulls":8},"Steuerverwaltung des Kant. Graubünden"]
[{"$nulls":10},{"$f":"\"z.H.\" &\" \"&E3","v":"z.H. Rechnungswesen"}]
[{"$nulls":10},"Steinbruchstrasse 18"]
[{"$nulls":10},"7001 Chur"]
[null,{"$f":"VLOOKUP(A4,Textkonserven!A:B,2,FALSE)","v":"Verifica della situazione patrimoniale e di reddito in relazione a una domanda di condono per crediti fiscali (DCCF)"}]
[]
[null,"1.",{"$f":"VLOOKUP(A4,Textkonserven!A:I,9,FALSE)","v":"Dati personali contribuente"}]
[null,null,"Cognome / nome",{"$nulls":5},"/"]
[null,null,"Indirizzo"]
[null,null,"NPA / Luogo",{"$nulls":3},"/"]
[null,null,"Data di nascita"]
[null,null,"Datore di lavoro",null,null," ",{"$nulls":4},"/     Luogo di lavoro "]
[null,null,"Volume di lavoro in %"]
[]
[]
[null,"2.","Numero di persone che vivono nella stessa economia domestica"]
[null,null,"Numero di adulti:"]
[0,null,"Situazione famigliare:"]
[]
[null,null,"Nomi dei figli del richiedente",{"$nulls":7},"Data di nascita",null,"Osservazioni",null,"Anzahl Jahre zwischen heute und Geburtstag"]
[{"$nulls":12},{"$f":"IF(AND(K27>0,O27>18),(\">> Il bambino viene considerato adulto! <<\"),\"\")","v":""},null,{"$f":"IF(K27>0,DAYS360(K27,L$5,TRUE)/360,\" \")","v":" "},null,null,{"$f":"IF(N27>0,DAYS360(L$5,N27,TRUE)/360,\" \")","v":" "}]
[{"$nulls":12},{"$f":"IF(AND(K28>0,O28>18),(\">> Il bambino viene considerato adulto! <<\"),\"\")","v":""},null,{"$f":"IF(K28>0,DAYS360(K28,L$5,TRUE)/360,\" \")","v":" "},null,null,{"$f":"IF(N28>0,DAYS360(L$5,N28,TRUE)/360,\" \")","v":" "}]
[{"$nulls":12},"",null," ",null,null,{"$f":"IF(N29>0,DAYS360(L$5,N29,TRUE)/360,\" \")","v":" "}]
[{"$nulls":12},"",null," ",null,null," "]
[{"$nulls":12},"",null," ",null,null,{"$f":"IF(N31>0,DAYS360(L$5,N31,TRUE)/360,\" \")","v":" "}]
[{"$nulls":12},"",null," ",null,null,{"$f":"IF(N32>0,DAYS360(L$5,N32,TRUE)/360,\" \")","v":" "}]
[]
[]
[null,"Domande riguardanti la sua situazione finaziaria"]
[0,null,"Al momento è soggetto a pignoramento?"]
[null,null,"Se sì, la preghiamo di farci pervenire una copia del verbale di pignoramento più attuale e il calcolo per il minimo vitale, compreso il formulario firmato, i seguenti campi da 3 a 6 non devono essere compilati. "]
[null,null,"Se no, la preghiamo di compilare i campi da 3 a 6 riguardanti il suo Budget mensile. "]
[]
[]
[null,"Budget mensile",{"$nulls":11},"in CHF"]
[null,"3.","Proventi mensili"]
[null,null,3.1,"Salario netto II secondo il certificato di salario"]
[null,null,3.2,"Altri proventi (attività lucrativa accessoria, prelevamenti in natura, entrate da locazione, \nspese di viaggio, ecc.)"]
[null,null,3.3,"Proventi compensativi (AVS/AI, AD, cassa pensioni, altre rendite)"]
[null,null,3.4,"Prestazioni complementari AVS/AI"]
[null,null,3.5,"Contributi di mantenimento / di sostegno",null,1]
[null,null,3.6,"Redditi patrimoniali (titoli e averi su conti)"]
[null,null,3.7,"Riduzione dei premi cassa malati (RIP)"]
[]
[]
[null,"4.","Spese mensili",{"$nulls":10},"in CHF"]
[null,null,4.1,"Importo di base per cibo, vestiti, salute, tempo libero, telefono, ecc. l'amministrazione delle imposte calcola una somma forfettaria, come pure per i figli del richiedente. "]
[null,null,4.2,"Contributi di mantenimento / di sostegno"]
[null,null,"4.3","O il canone di locazione, incl. gli acconti per riscaldamento e spese accessorie"]
[null,null,"4.4","O il tasso ipotecario (senza ammortamento!)\nincl. tasse di diritto pubblico e spese di manutenzione per l'immobile"]
[null,null,"4.5","Cassa malati (assicurazione di base)"]
[null,null,"4.6","Contributi sociali, se non sono già stati dedotti dal salario"]
[null,null,"4.7","Imposte correnti (Confederazione, Cantone e Comune) convertito a 1 mese"]
[null,null,"4.8","Spese professionali necessarie per spese di trasferta"]
[0,null,null,"Mezzo di trasporto:"]
[]
[0]
[{"$nulls":4},"Tragitto di lavoro per veicoli privati con il criterio di pertinenza (vedi istruzioni)"]
[{"$nulls":4},"- Chilometri / Tragitto"]
[{"$nulls":4},"- Numero di corse"]
[{"$nulls":4},"- Numero di giorni lavorativi al mese (max. 20)"]
[]
[]
[]
[]
[null,null,"4.9","Spese professionali necessarie per vitto fuori casa"]
[null,null,"4.10","Spese di locazione / leasing per oggetti indispensabili per l'esercizio dell'attività lucrativa"]
[null,null,"4.11","Rimborsi di mutui e debiti"]
[null,null,"4.12","Altre uscite"]
[{"$nulls":3}," "]
[]
[]
[null,"5.","Valori patrimoniali",{"$nulls":10},"in CHF"]
[null,null,5.1,"Titoli (conti, obbligazioni, azioni, ecc.)"]
[null,null,"5.2","Assicurazione sulla vita (valori di riscatto)"]
[null,null,"5.3","Immobili (valore venale secondo stima ufficiale)"]
[null,null,"5.3a","Particella n.:"]
[{"$nulls":3},"Indirizzo:    "]
[null,null,"5.3b","Particella n.:"]
[{"$nulls":3},"Indirizzo:    "]
[null,null,"5.4","Altra sostanza (partecipazioni, eredità indivise, ecc.)"]
[]
[{"$nulls":13},{"$f":"SUM(N80:N87)","v":0}]
[null,"6.","Debiti",{"$nulls":10},"in CHF"]
[null,null,"6.1","Tipo:"]
[{"$nulls":3},"Creditore"]
[null,null,"6.2","Tipo:"]
[{"$nulls":3},"Creditore"]
[null,null,"6.3","Tipo:"]
[{"$nulls":3},"Creditore"]
[null,null,"6.4","Tipo:"]
[{"$nulls":3},"Creditore"]
[null,null,"6.5","Tipo:"]
[{"$nulls":3},"Creditore"]
[null,null,"6.6","Tipo:"]
[{"$nulls":3},"Creditore"]
[null,null,"6.7","Tipo:"]
[{"$nulls":3},"Creditore"]
[null,null,"6.8","Tipo:"]
[{"$nulls":3},"Creditore"]
[]
[{"$nulls":13},{"$f":"SUM(N91:N106)","v":0}]
[null,{"$f":"IF(OR($A$4=\"v\",$A$4=\"e\"),Textkonserven!$J$4,\"\")","v":"Rinunciano i creditori (nono privilegiati) ai loro crediti? Sì / No:"},{"$nulls":9},{"$f":"IF(OR($A$4=\"v\",$A$4=\"e\"),\"___\",\"\")","v":"___"}]
[null,{"$f":"IF(OR($A$4=\"v\",$A$4=\"e\"),Textkonserven!$K$5,\"\")","v":"(Se sì, allegare piano di risanamento e documenti giustificativi) "}]
[]
[null,"Il/La sottoscritto/a conferma la completezza e la veridicità delle indicazioni riportate"]
[]
[null,"Luogo / data",{"$nulls":4},"/",{"$nulls":3},"Firma:"]

{"sheet":"Bearbeitung","index":1,"n_rows":113,"n_cols":16,"rows_kept":113,"hidden":true,"merged":[[0,0,1,0],[0,1,0,2],[0,4,0,13],[1,1,1,13],[2,11,2,13],[3,11,3,13],[4,0,10,0],[4,11,4,13],[5,10,5,13],[6,1,6,3],[6,4,6,5],[6,10,6,13],[7,10,7,13],[8,10,8,13],[9,10,9,13],[10,1,10,13],[11,1,11,13],[12,2,12,13],[13,2,13,4],[13,5,13,7],[13,9,13,13],[14,2,14,4],[14,5,14,13],[15,2,15,4],[15,7,15,13],[16,2,16,4],[16,5,16,6],[16,9,16,13],[17,2,17,4],[17,5,17,9],[17,10,17,12],[18,2,18,4],[18,11,18,12],[19,2,19,4],[19,7,19,9],[19,12,19,13],[21,2,21,13],[22,2,22,4],[22,6,22,13],[23,2,23,5],[23,6,23,7],[23,10,23,11],[23,12,23,13],[24,2,24,9],[24,10,24,11],[24,12,24,13],[25,2,25,9],[25,10,25,11],[25,12,25,13],[26,2,26,9],[26,10,26,11],[26,12,26,13],[27,2,27,9],[27,10,27,11],[27,12,27,13],[28,2,28,9],[28,10,28,11],[28,12,28,13],[29,2,29,9],[29,10,29,11],[29,12,29,13],[30,2,30,4],[30,7,30,9],[30,12,30,13],[32,1,32,13],[33,2,33,7],[34,2,34,13],[35,2,35,13],[36,2,36,4],[36,7,36,9],[36,12,36,13],[38,1,38,12],[38,13,39,13],[39,2,39,12],[40,3,40,12],[41,3,41,12],[42,3,42,12],[43,3,43,12],[44,3,44,12],[45,3,45,12],[46,3,46,12],[47,3,47,12],[48,1,48,10],[49,2,49,12],[50,3,50,12],[51,11,51,12],[52,11,52,12],[53,3,53,7],[53,11,53,12],[54,4,54,5],[54,6,54,7],[54,11,54,12],[55,3,55,12],[56,3,56,12],[57,3,57,12],[58,3,58,12],[59,3,59,12],[60,3,60,12],[61,3,61,12],[73,3,73,12],[74,3,74,12],[75,3,75,12],[76,3,76,12],[77,3,77,12],[78,3,78,12],[79,1,79,12],[80,2,80,12],[81,3,81,12],[82,3,82,12],[83,3,83,12],[84,3,84,4],[84,5,84,12],[85,3,85,4],[85,5,85,12],[86,3,86,4],[86,5,86,12],[87,3,87,4],[87,5,87,12],[88,3,88,12],[89,3,89,12],[90,1,90,12],[91,2,91,12],[92,3,92,4],[92,5,92,12],[93,3,93,4],[93,5,93,12],[94,3,94,4],[94,5,94,12],[95,3,95,4],[95,5,95,12],[96,3,96,4],[96,5,96,12],[97,3,97,4],[97,5,97,12],[98,3,98,4],[98,5,98,12],[99,3,99,4],[99,5,99,12],[100,3,100,4],[100,5,100,12],[101,3,101,4],[101,5,101,12],[102,3,102,4],[102,5,102,12],[103,3,103,4],[103,5,103,12],[104,3,104,4],[104,5,104,12],[105,3,105,4],[105,5,105,12],[106,3,106,4],[106,5,106,12],[107,3,107,4],[107,5,107,12],[108,3,108,12],[109,1,109,12],[110,1,110,10],[112,1,112,3],[112,4,112,13],[113,1,113,13]]}
["Sachbearbeiter",{"$nulls":3},"Steuerverwaltung des Kantons Graubünden  \nAdministraziun da taglia dal Chantun Grischun     \nAmministrazione imposte del Cantone dei Grigioni ",{"$nulls":9},"Bemerkungen intern, ohne Anzeige an den Kunden"]
[null,"Abteilung Rechnungswesen, Steinbruchstrasse 18, CH-7001 Chur    "]
["rw",{"$f":"questinario!B3:D3","v":"Incaricato/a:"},null,null,{"$f":"VLOOKUP($A$3,Sachbearbeiter!$A:$E,2,FALSE)","v":"Rechnungswesen"},{"$nulls":5},"Tel:",{"$f":"VLOOKUP($A$3,Sachbearbeiter!$A:$E,3,FALSE)","v":"081 257 33 18"}]
["e","Mail:",null,null,{"$f":"VLOOKUP($A$3,Sachbearbeiter!$A:$E,5,FALSE)","v":"rechnungswesen@stv.gr.ch"},{"$nulls":5},"Fax:",{"$f":"VLOOKUP($A$3,Sachbearbeiter!$A:$E,4,FALSE)","v":"081 257 20 14"}]
["Sachgebiet: u=URP / v=VS / e= Erlasss",{"$nulls":9},{"$f":"questinario!K5","v":"Data:"},{"$f":"IF(questinario!L5:N5<>0,questinario!L5:N5,\"\")","v":""}]
[]
[null,{"$f":"VLOOKUP(A4,Textkonserven!A:D,4,FALSE)","v":"Registro n."},null,null,{"$f":"IF(questinario!E7:F7<>0,questinario!E7:F7,\"\")","v":""},{"$nulls":5},{"$f":"questinario!K7","v":"Steuerverwaltung des Kant. Graubünden"}]
[{"$nulls":10},{"$f":"questinario!K8","v":"z.H. Rechnungswesen"}]
[{"$nulls":10},{"$f":"questinario!K9","v":"Steinbruchstrasse 18"}]
[{"$nulls":10},{"$f":"questinario!K10","v":"7001 Chur"}]
[null,{"$f":"VLOOKUP(A4,Textkonserven!A:B,2,FALSE)","v":"Verifica della situazione patrimoniale e di reddito in relazione a una domanda di condono per crediti fiscali (DCCF)"}]
[]
[null,"1.",{"$f":"VLOOKUP(A4,Textkonserven!A:I,9,FALSE)","v":"Dati personali contribuente"}]
[null,null,{"$f":"questinario!C14","v":"Cognome / nome"},null,null,{"$f":"IF(questinario!F14:H14<>0,questinario!F14:H14,\"\")","v":""},null,null,"/",{"$f":"IF(questinario!J14:N14<>0,questinario!J14:N14,\"\")","v":""}]
[null,null,{"$f":"questinario!C15","v":"Indirizzo"},null,null,{"$f":"IF(questinario!F15:N15<>0,questinario!F15:N15,\"\")","v":""}]
[null,null,{"$f":"questinario!C16","v":"NPA / Luogo"},null,null,{"$f":"IF(questinario!F16<>0,questinario!F16,\"\")","v":""},"/",{"$f":"IF(questinario!H16:N16<>0,questinario!H16:N16,\"\")","v":""}]
[null,null,{"$f":"questinario!C17","v":"Data di nascita"},null,null,{"$f":"IF(questinario!F17:G17<>0,questinario!F17:G17,\"\")","v":""}]
[null,null,{"$f":"questinario!C18","v":"Datore di lavoro"},null,null,{"$f":"IF(questinario!F18:J18<>0,questinario!F18:J18,\"\")","v":" "},{"$nulls":4},{"$f":"questinario!K18:M18","v":"/     Luogo di lavoro "},null,null,{"$f":"IF(questinario!N18:N18<>0,questinario!N18:N18,\"\")","v":""}]
[null,null,{"$f":"questinario!C19","v":"Volume di lavoro in %"},null,null,{"$f":"IF(questinario!F19<>0,questinario!F19,\"\")","v":""}]
[]
[]
[null,"2.",{"$f":"questinario!C22","v":"Numero di persone che vivono nella stessa economia domestica"}]
[null,null,{"$f":"questinario!C23","v":"Numero di adulti:"},null,null,{"$f":"IF(questinario!F23<>0,questinario!F23,\"\")","v":""}]
[null,null,{"$f":"questinario!C26","v":"Nomi dei figli del richiedente"},{"$nulls":7},{"$f":"questinario!K26","v":"Data di nascita"},null,{"$f":"questinario!M26","v":"Osservazioni"},null,"Alter"]
[null,null,{"$f":"IF(questinario!C27:J27<>0,questinario!C27:J27,\"\")","v":""},{"$nulls":7},{"$f":"IF(questinario!K27:L27>0,questinario!K27:L27,0)","v":"00:00:00"},null,{"$f":"IF(questinario!M27<>\"\",IF(AND(K25>0,O25>18),(\">> Il bambino è considerato una persona adulta! <<\"),questinario!M27),\"\")","v":""},null,{"$f":"IF(K25>0,DAYS360(K25,L$5,TRUE)/360,\" \")","v":" "}]
[null,null,{"$f":"IF(questinario!C28:J28<>0,questinario!C28:J28,\"\")","v":""},{"$nulls":7},{"$f":"IF(questinario!K28:L28>0,questinario!K28:L28,0)","v":"00:00:00"},null,{"$f":"IF(questinario!M28<>\"\",IF(AND(K26>0,O26>18),(\">> Il bambino è considerato una persona adulta! <<\"),questinario!M28),\"\")","v":""},null,{"$f":"IF(K26>0,DAYS360(K26,L$5,TRUE)/360,\" \")","v":" "}]
[null,null,{"$f":"IF(questinario!C29:J29<>0,questinario!C29:J29,\"\")","v":""},{"$nulls":7},{"$f":"IF(questinario!K29:L29>0,questinario!K29:L29,0)","v":"00:00:00"},null,{"$f":"IF(questinario!M29<>\"\",IF(AND(K27>0,O27>18),(\">> Il bambino è considerato una persona adulta! <<\"),questinario!M29),\"\")","v":""},null,{"$f":"IF(K27>0,DAYS360(K27,L$5,TRUE)/360,\" \")","v":" "}]
[null,null,{"$f":"IF(questinario!C30:J30<>0,questinario!C30:J30,\"\")","v":""},{"$nulls":7},{"$f":"IF(questinario!K30:L30>0,questinario!K30:L30,0)","v":"00:00:00"},null,{"$f":"IF(questinario!M30<>\"\",IF(AND(K28>0,O28>18),(\">> Il bambino è considerato una persona adulta! <<\"),questinario!M30),\"\")","v":""},null," "]
[null,null,{"$f":"IF(questinario!C31:J31<>0,questinario!C31:J31,\"\")","v":""},{"$nulls":7},{"$f":"IF(questinario!K31:L31>0,questinario!K31:L31,0)","v":"00:00:00"},null,{"$f":"IF(questinario!M31<>\"\",IF(AND(K29>0,O29>18),(\">> Il bambino è considerato una persona adulta! <<\"),questinario!M31),\"\")","v":""},null,{"$f":"IF(K29>0,DAYS360(K29,L$5,TRUE)/360,\" \")","v":" "}]
[null,null,{"$f":"IF(questinario!C32:J32<>0,questinario!C32:J32,\"\")","v":""},{"$nulls":7},{"$f":"IF(questinario!K32:L32>0,questinario!K32:L32,0)","v":"00:00:00"},null,{"$f":"IF(questinario!M32<>\"\",IF(AND(K30>0,O30>18),(\">> Il bambino è considerato una persona adulta! <<\"),questinario!M32),\"\")","v":""},null,{"$f":"IF(K30>0,DAYS360(K30,L$5,TRUE)/360,\" \")","v":" "}]
[]
[]
[null,{"$f":"questinario!B35","v":"Domande riguardanti la sua situazione finaziaria"}]
[{"$f":"questinario!A36","v":0},null,{"$f":"questinario!C36","v":"Al momento è soggetto a pignoramento?"}]
[null,null,{"$f":"questinario!C37","v":"Se sì, la preghiamo di farci pervenire una copia del verbale di pignoramento più attuale e il calcolo per il minimo vitale, compreso il formulario firmato, i seguenti campi da 3 a 6 non devono essere compilati. "}]
[null,null,{"$f":"questinario!C38","v":"Se no, la preghiamo di compilare i campi da 3 a 6 riguardanti il suo Budget mensile. "}]
[]
[]
[null,{"$f":"questinario!B41","v":"Budget mensile"},{"$nulls":11},{"$f":"questinario!N41","v":"in CHF"}]
[null,"3.",{"$f":"questinario!C42","v":"Proventi mensili"}]
[null,null,{"$f":"questinario!C43","v":3.1},{"$f":"questinario!D43","v":"Salario netto II secondo il certificato di salario"},{"$nulls":9},{"$f":"questinario!N43","v":0}]
[null,null,{"$f":"questinario!C44","v":3.2},{"$f":"questinario!D44","v":"Altri proventi (attività lucrativa accessoria, prelevamenti in natura, entrate da locazione, \nspese di viaggio, ecc.)"},{"$nulls":9},{"$f":"questinario!N44","v":0}]
[null,null,{"$f":"questinario!C45","v":3.3},{"$f":"questinario!D45","v":"Proventi compensativi (AVS/AI, AD, cassa pensioni, altre rendite)"},{"$nulls":9},{"$f":"questinario!N45","v":0}]
[null,null,{"$f":"questinario!C46","v":3.4},{"$f":"questinario!D46","v":"Prestazioni complementari AVS/AI"},{"$nulls":9},{"$f":"questinario!N46","v":0}]
[null,null,{"$f":"questinario!C47","v":3.5},{"$f":"questinario!D47","v":"Contributi di mantenimento / di sostegno"},{"$nulls":9},{"$f":"questinario!N47","v":0}]
[null,null,{"$f":"questinario!C48","v":3.6},{"$f":"questinario!D48","v":"Redditi patrimoniali (titoli e averi su conti)"},{"$nulls":9},{"$f":"questinario!N48","v":0}]
[null,null,{"$f":"questinario!C49","v":3.7},{"$f":"questinario!D49","v":"Riduzione dei premi cassa malati (RIP)"},{"$nulls":9},{"$f":"questinario!N49","v":0}]
[]
[]
[null,"4.",{"$f":"questinario!C52:M52","v":"Spese mensili"},{"$nulls":10},{"$f":"questinario!N52","v":"in CHF"}]
[null,null,{"$f":"questinario!C53","v":4.1},"Forfait per alimenti, abbigliamento, salute, svago, telefono ecc"]
[{"$f":"IF(AND(questinario!A24=1,D55+I55=0),1,IF(AND(questinario!A24=1,D55+I55>0),2,IF(AND(questinario!A24=2,D55+I55=0),1,IF(AND(questinario!A24=2,D55+I55>0),3))))","v":false},{"$nulls":10},{"v":1200,"d":"CHF 1,200"},null,{"$f":"IF($A$52=1,L52,\"\")","v":""},"=WENN(UND(Fragebogen!A24=1;D55+I55=0);1;WENN(UND(Fragebogen!A24=1;D55+I55>0);2;WENN(UND(Fragebogen!A24=2;D55+I55=0);1;WENN(UND(Fragebogen!A24=2;D55+I55>0);3))))"]
[{"$nulls":11},{"v":1350,"d":"CHF 1,350"},null,{"$f":"IF($A$52=2,L53,\"\")","v":""}]
[{"$nulls":4},1,{"$nulls":6},{"$f":"IF(A4=\"u\",850,IF(A4=\"a\",850,1700))","v":{"v":1700,"d":"CHF 1,700"}},null,{"$f":"IF($A$52=3,L54,\"\")","v":""}]
[{"$nulls":3},{"$f":"COUNTIF(O25:O30,\"<=9.9999\")","v":0},"Figli fino a 10 anni:",null,{"v":400,"d":"CHF 400"},null,{"$f":"COUNTIFS(O25:O30,\">9.9999\",O25:O30,\"<=18\")","v":0},"con più di 10 anni:",null,{"v":600,"d":"CHF 600"},null,{"$f":"IF(OR(D55>0,I55>0),(D55*G55)+(I55*L55),0)","v":0}]
[null,null,{"$f":"questinario!C54","v":4.2},{"$f":"questinario!D54","v":"Contributi di mantenimento / di sostegno"},{"$nulls":9},{"$f":"questinario!N54","v":0}]
[null,null,{"$f":"questinario!C55","v":"4.3"},{"$f":"questinario!D55","v":"O il canone di locazione, incl. gli acconti per riscaldamento e spese accessorie"},{"$nulls":9},{"$f":"questinario!N55","v":0}]
[null,null,{"$f":"questinario!C56","v":"4.4"},{"$f":"questinario!D56","v":"O il tasso ipotecario (senza ammortamento!)\nincl. tasse di diritto pubblico e spese di manutenzione per l'immobile"},{"$nulls":9},{"$f":"questinario!N56","v":0}]
[null,null,{"$f":"questinario!C57","v":"4.5"},{"$f":"questinario!D57","v":"Cassa malati (assicurazione di base)"},{"$nulls":9},{"$f":"questinario!N57","v":0}]
[null,null,{"$f":"questinario!C58","v":"4.6"},{"$f":"questinario!D58","v":"Contributi sociali, se non sono già stati dedotti dal salario"},{"$nulls":9},{"$f":"questinario!N58","v":0}]
[null,null,{"$f":"questinario!C59","v":"4.7"},{"$f":"questinario!D59","v":"Imposte correnti (Confederazione, Cantone e Comune) convertito a 1 mese"},{"$nulls":9},{"$f":"questinario!N59","v":0}]
[null,null,{"$f":"questinario!C60","v":"4.8"},{"$f":"questinario!D60","v":"Spese professionali necessarie per spese di trasferta"},{"$nulls":10},"Konstante: CHF Betrag / Km",{"v":0.7,"d":"0.70"}]
[{"$f":"questinario!A61","v":0},null,null,"Mezzo di trasporto:",{"$nulls":10},"Konstante: CHF Betrag GA 2. Klasse / Jahr",{"v":3860,"d":"3,860.00"}]
[{"$nulls":13},{"$f":"IF(A63=1,IF(P70>P68,P68,P70),0)","v":0},"Konstante: Max. CHF Betrag für Fzg mit Kompetenzqualität / Jahr",{"v":10500,"d":"10,500.00"}]
[{"$nulls":13},{"$f":"IF(A63=2,IF(P71>=P69,P69,P71),0)","v":0},"Konstante: Max. Anzahl Arbeitstage / Monat",{"v":20,"d":"20.00"}]
[{"$nulls":4},"Tragitto di lavoro per veicoli privati con criterio di pertinenza (vedi istruzioni) 1)",{"$nulls":9},"Konstante: Mofa pauschal pro Monat",{"v":30,"d":"30.00"}]
[{"$nulls":4},"- Chilometri / Tragitto",{"$nulls":8},{"$f":"IF(A63=2,questinario!N65,0)","v":0},"Konstante: Fahrrad pauschal pro Monat",{"v":15,"d":"15.00"}]
[{"$nulls":4},"- Numero di corse",{"$nulls":8},{"$f":"IF(A63=2,questinario!N66,0)","v":0},"Errechnet: Max. CHF Betrag GA 2. Klasse / Monat",{"$f":"P63/12","v":{"v":321.6666666666667,"d":"321.67"}}]
[{"$nulls":4},"- Numero di giorni lavorativi al mese (max. 20)",{"$nulls":8},{"$f":"IF(A63=2,IF(P72>P65,P65,P72),0)","v":0},"Errechnet: Max. CHF Betrag für Fzg mit Kompetenzqualität / Monat",{"$f":"P64/12","v":{"v":875,"d":"875.00"}}]
[{"$nulls":13},{"$f":"IF(A63=3,P66,0)","v":0},"Erfasste: Kosten für ÖV",{"$f":"questinario!N62","v":0}]
[{"$nulls":13},{"$f":"IF(A63=4,P67,0)","v":0},"Erfasste: Fahrkosten mit privat Fahrzeug / Monat",{"$f":"IF(A63=2,N67*N68*P62*N69,0)","v":0}]
[{"$nulls":13},{"$f":"IF(A63=5,0,0)","v":0},"Erfasste: Arbeitstage / Monat",{"$f":"questinario!N67","v":0}]
[]
[null,null,{"$f":"questinario!C72","v":"4.9"},{"$f":"questinario!D72","v":"Spese professionali necessarie per vitto fuori casa"},{"$nulls":9},{"$f":"questinario!N72","v":0}]
[null,null,{"$f":"questinario!C73","v":"4.10"},{"$f":"questinario!D73","v":"Spese di locazione / leasing per oggetti indispensabili per l'esercizio dell'attività lucrativa"},{"$nulls":9},{"$f":"questinario!N73","v":0}]
[null,null,{"$f":"questinario!C74","v":"4.11"},{"$f":"questinario!D74","v":"Rimborsi di mutui e debiti"},{"$nulls":9},{"$f":"questinario!N74","v":0}]
[null,null,{"$f":"questinario!C75","v":"4.12"},{"$f":"questinario!D75","v":"Altre uscite"},{"$nulls":9},{"$f":"questinario!N75","v":0}]
[{"$nulls":3},{"$f":"questinario!D76:M76","v":" "}]
[]
[]
[null,"5.",{"$f":"questinario!C79:M79","v":"Valori patrimoniali"},{"$nulls":10},{"$f":"questinario!N79","v":"in CHF"}]
[null,null,{"$f":"questinario!C80","v":5.1},{"$f":"questinario!D80","v":"Titoli (conti, obbligazioni, azioni, ecc.)"},{"$nulls":9},{"$f":"questinario!N80","v":0}]
[null,null,{"$f":"questinario!C81","v":"5.2"},{"$f":"questinario!D81","v":"Assicurazione sulla vita (valori di riscatto)"},{"$nulls":9},{"$f":"questinario!N81","v":0}]
[null,null,{"$f":"questinario!C82","v":"5.3"},{"$f":"questinario!D82","v":"Immobili (valore venale secondo stima ufficiale)"}]
[null,null,{"$f":"questinario!C83","v":"5.3a"},{"$f":"questinario!D83","v":"Particella n.:"},null,{"$f":"IF(questinario!F83:M83<>0,questinario!F83:M83,\"\")","v":""},{"$nulls":7},{"$f":"questinario!N83","v":0}]
[{"$nulls":3},{"$f":"questinario!D84","v":"Indirizzo:    "},null,{"$f":"IF(questinario!F84:M84<>0,questinario!F84:M84,\"\")","v":""}]
[null,null,{"$f":"questinario!C85","v":"5.3b"},{"$f":"questinario!D85","v":"Particella n.:"},null,{"$f":"IF(questinario!F85:M85<>0,questinario!F85:M85,\"\")","v":""},{"$nulls":7},{"$f":"questinario!N85","v":0}]
[{"$nulls":3},{"$f":"questinario!D86","v":"Indirizzo:    "},null,{"$f":"IF(questinario!F86:M86<>0,questinario!F86:M86,\"\")","v":""}]
[null,null,{"$f":"questinario!C87","v":"5.4"},{"$f":"questinario!D87","v":"Altra sostanza (partecipazioni, eredità indivise, ecc.)"},{"$nulls":9},{"$f":"questinario!N87","v":0}]
[]
[{"$nulls":13},{"$f":"SUM(N82:N89)","v":0}]
[null,"6",{"$f":"questinario!C90:M90","v":"Debiti"},{"$nulls":10},{"$f":"questinario!N90","v":"in CHF"}]
[null,null,{"$f":"questinario!C91","v":"6.1"},{"$f":"questinario!D91","v":"Tipo:"},null,{"$f":"IF(questinario!F91:M91<>0,questinario!F91:M91,\"\")","v":""},{"$nulls":7},{"$f":"questinario!N91","v":0}]
[{"$nulls":3},{"$f":"questinario!D92","v":"Creditore"},null,{"$f":"IF(questinario!F92:M92<>0,questinario!F92:M92,\"\")","v":""}]
[null,null,{"$f":"questinario!C93","v":"6.2"},{"$f":"questinario!D93","v":"Tipo:"},null,{"$f":"IF(questinario!F93:M93<>0,questinario!F93:M93,\"\")","v":""},{"$nulls":7},{"$f":"questinario!N93","v":0}]
[{"$nulls":3},{"$f":"questinario!D94","v":"Creditore"},null,{"$f":"IF(questinario!F94:M94<>0,questinario!F94:M94,\"\")","v":""}]
[null,null,{"$f":"questinario!C95","v":"6.3"},{"$f":"questinario!D95","v":"Tipo:"},null,{"$f":"IF(questinario!F95:M95<>0,questinario!F95:M95,\"\")","v":""},{"$nulls":7},{"$f":"questinario!N95","v":0}]
[{"$nulls":3},{"$f":"questinario!D96","v":"Creditore"},null,{"$f":"IF(questinario!F96:M96<>0,questinario!F96:M96,\"\")","v":""}]
[null,null,{"$f":"questinario!C97","v":"6.4"},{"$f":"questinario!D97","v":"Tipo:"},null,{"$f":"IF(questinario!F97:M97<>0,questinario!F97:M97,\"\")","v":""},{"$nulls":7},{"$f":"questinario!N97","v":0}]
[{"$nulls":3},{"$f":"questinario!D98","v":"Creditore"},null,{"$f":"IF(questinario!F98:M98<>0,questinario!F98:M98,\"\")","v":""}]
[null,null,{"$f":"questinario!C99","v":"6.5"},{"$f":"questinario!D99","v":"Tipo:"},null,{"$f":"IF(questinario!F99:M99<>0,questinario!F99:M99,\"\")","v":""},{"$nulls":7},{"$f":"questinario!N99","v":0}]
[{"$nulls":3},{"$f":"questinario!D100","v":"Creditore"},null,{"$f":"IF(questinario!F100:M100<>0,questinario!F100:M100,\"\")","v":""}]
[null,null,{"$f":"questinario!C101","v":"6.6"},{"$f":"questinario!D101","v":"Tipo:"},null,{"$f":"IF(questinario!F101:M101<>0,questinario!F101:M101,\"\")","v":""},{"$nulls":7},{"$f":"questinario!N101","v":0}]
[{"$nulls":3},{"$f":"questinario!D102","v":"Creditore"},null,{"$f":"IF(questinario!F102:M102<>0,questinario!F102:M102,\"\")","v":""}]
[null,null,{"$f":"questinario!C103","v":"6.7"},{"$f":"questinario!D103","v":"Tipo:"},null,{"$f":"IF(questinario!F103:M103<>0,questinario!F103:M103,\"\")","v":""},{"$nulls":7},{"$f":"questinario!N103","v":0}]
[{"$nulls":3},{"$f":"questinario!D104","v":"Creditore"},null,{"$f":"IF(questinario!F104:M104<>0,questinario!F104:M104,\"\")","v":""}]
[null,null,{"$f":"questinario!C105","v":"6.8"},{"$f":"questinario!D105","v":"Tipo:"},null,{"$f":"IF(questinario!F105:M105<>0,questinario!F105:M105,\"\")","v":""},{"$nulls":7},{"$f":"questinario!N105","v":0}]
[{"$nulls":3},{"$f":"questinario!D106","v":"Creditore"},null,{"$f":"IF(questinario!F106:M106<>0,questinario!F106:M106,\"\")","v":""}]
[]
[{"$nulls":13},{"$f":"SUM(N93:N108)","v":0}]
[null,{"$f":"questinario!B109","v":"Rinunciano i creditori (nono privilegiati) ai loro crediti? Sì / No:"},{"$nulls":9},{"$f":"questinario!L109","v":"___"}]
[]
[null,"Osservazioni"]

{"sheet":"Berechnung","index":2,"n_rows":66,"n_cols":15,"rows_kept":66,"hidden":true,"merged":[[0,0,1,0],[0,4,0,13],[1,1,1,13],[2,11,2,13],[3,11,3,13],[4,11,4,13],[5,1,5,13],[7,2,7,13],[8,2,8,4],[8,5,8,6],[8,12,8,13],[9,2,9,4],[9,5,9,13],[10,2,10,4],[10,5,10,13],[11,2,11,4],[11,7,11,13],[12,2,12,4],[12,5,12,6],[12,7,12,9],[12,10,12,13],[13,2,13,4],[13,5,13,9],[13,10,13,12],[14,2,14,4],[14,11,14,12],[15,2,15,4],[15,7,15,9],[15,12,15,13],[17,2,17,13],[18,2,18,4],[18,6,18,13],[19,2,19,4],[19,7,19,9],[19,12,19,13],[21,1,21,12],[21,13,22,13],[22,2,22,12],[23,3,23,12],[24,3,24,12],[25,3,25,12],[26,3,26,12],[27,3,27,12],[28,3,28,12],[29,3,29,12],[30,3,30,12],[31,1,31,12],[34,2,34,12],[35,3,35,12],[36,11,36,12],[37,11,37,12],[38,3,38,7],[38,11,38,12],[39,4,39,5],[39,6,39,7],[39,11,39,12],[40,3,40,12],[41,3,41,12],[42,3,42,12],[43,3,43,12],[44,3,44,12],[45,3,45,12],[46,3,46,12],[47,3,47,12],[48,3,48,12],[49,3,49,12],[50,3,50,12],[51,3,51,12],[52,3,52,12],[53,1,53,12],[54,1,54,12],[56,1,56,7],[57,3,57,6],[58,3,58,6],[59,3,59,6],[60,3,60,6],[61,1,61,7],[64,1,64,3],[64,4,64,13],[65,1,65,13]]}
[{"$nulls":4},"Steuerverwaltung des Kantons Graubünden  \nAdministraziun da taglia dal Chantun Grischun     \nAmministrazione imposte del Cantone dei Grigioni ",{"$nulls":9},"Bemerkungen intern, ohne Anzeige an den Kunden"]
[null,"Abteilung Rechnungswesen, Steinbruchstrasse 18, CH-7001 Chur    "]
[null,{"$f":"Bearbeitung!B3","v":"Incaricato/a:"},null,null,{"$f":"Bearbeitung!E3","v":"Rechnungswesen"},{"$nulls":5},"Tel:",{"$f":"Bearbeitung!L3","v":"081 257 33 18"}]
[null,"Mail:",null,null,{"$f":"Bearbeitung!E4","v":"rechnungswesen@stv.gr.ch"},{"$nulls":5},"Fax:",{"$f":"Bearbeitung!L4","v":"081 257 20 14"}]
[{"$nulls":10},{"$f":"Bearbeitung!K5","v":"Data:"},{"$f":"Bearbeitung!L5","v":""}]
[null,{"$f":"VLOOKUP(Bearbeitung!A4,Textkonserven!A:C,3,FALSE)","v":"Calcolo della situazione patrimoniale e di reddito in relazione a una domanda di condono per crediti fiscali (DCCF)"}]
[]
[null,"1.",{"$f":"Bearbeitung!C13","v":"Dati personali contribuente"}]
[null,null,{"$f":"Bearbeitung!B7","v":"Registro n."},null,null,{"$f":"IF(Bearbeitung!E7<>\"\",Bearbeitung!E7,\"\")","v":""}]
[null,null,{"$f":"Bearbeitung!C14","v":"Cognome / nome"},null,null,{"$f":"IF(Bearbeitung!F14<>\"\",Bearbeitung!F14&\" \"&Bearbeitung!J14,\"\")","v":""}]
[null,null,{"$f":"Bearbeitung!C15","v":"Indirizzo"},null,null,{"$f":"IF(Bearbeitung!F15<>\"\",Bearbeitung!F15,\"\")","v":""}]
[null,null,{"$f":"Bearbeitung!C16","v":"NPA / Luogo"},null,null,{"$f":"IF(Bearbeitung!F16<>\"\",Bearbeitung!F16,\"\")","v":""},"/",{"$f":"IF(Bearbeitung!H16<>\"\",Bearbeitung!H16,\"\")","v":""}]
[null,null,{"$f":"Bearbeitung!C17","v":"Data di nascita"},null,null,{"$f":"IF(Bearbeitung!F17>0,Bearbeitung!F17,\"\")","v":""}]
[null,null,{"$f":"Bearbeitung!C18","v":"Datore di lavoro"},null,null,{"$f":"IF(Bearbeitung!F18<>\"\",Bearbeitung!F18,\"\")","v":" "},{"$nulls":4},{"$f":"Bearbeitung!K18","v":"/     Luogo di lavoro "},null,null,{"$f":"IF(Bearbeitung!N18<>\"\",Bearbeitung!N18,\"\")","v":""}]
[null,null,{"$f":"Bearbeitung!C19","v":"Volume di lavoro in %"},null,null,{"$f":"IF(Bearbeitung!F19<>\"\",Bearbeitung!F19,\"\")","v":""}]
[]
[]
[null,"2.",{"$f":"Bearbeitung!C22","v":"Numero di persone che vivono nella stessa economia domestica"}]
[{"$f":"Bearbeitung!A23","v":0},null,{"$f":"Bearbeitung!C23","v":"Numero di adulti:"},null,null,{"$f":"Bearbeitung!F23","v":""},{"$nulls":8},{"$f":"IF(Bearbeitung!O23<>\"\",Bearbeitung!O23,\"\")","v":""}]
[]
[]
[null,{"$f":"Bearbeitung!B39","v":"Budget mensile"},{"$nulls":11},{"$f":"Bearbeitung!N39","v":"in CHF"}]
[null,"3.",{"$f":"Bearbeitung!C40","v":"Proventi mensili"}]
[null,null,{"$f":"Bearbeitung!C41","v":3.1},{"$f":"Bearbeitung!D41","v":"Salario netto II secondo il certificato di salario"},{"$nulls":9},{"$f":"Bearbeitung!N41","v":0},{"$f":"IF(Bearbeitung!O41<>\"\",Bearbeitung!O41,\"\")","v":""}]
[null,null,{"$f":"Bearbeitung!C42","v":3.2},{"$f":"Bearbeitung!D42","v":"Altri proventi (attività lucrativa accessoria, prelevamenti in natura, entrate da locazione, \nspese di viaggio, ecc.)"},{"$nulls":9},{"$f":"Bearbeitung!N42","v":0},{"$f":"IF(Bearbeitung!O42<>\"\",Bearbeitung!O42,\"\")","v":""}]
[null,null,{"$f":"Bearbeitung!C43","v":3.3},{"$f":"Bearbeitung!D43","v":"Proventi compensativi (AVS/AI, AD, cassa pensioni, altre rendite)"},{"$nulls":9},{"$f":"Bearbeitung!N43","v":0},{"$f":"IF(Bearbeitung!O43<>\"\",Bearbeitung!O43,\"\")","v":""}]
[null,null,{"$f":"Bearbeitung!C44","v":3.4},{"$f":"Bearbeitung!D44","v":"Prestazioni complementari AVS/AI"},{"$nulls":9},{"$f":"Bearbeitung!N44","v":0},{"$f":"IF(Bearbeitung!O44<>\"\",Bearbeitung!O44,\"\")","v":""}]
[null,null,{"$f":"Bearbeitung!C45","v":3.5},{"$f":"Bearbeitung!D45","v":"Contributi di mantenimento / di sostegno"},{"$nulls":9},{"$f":"Bearbeitung!N45","v":0},{"$f":"IF(Bearbeitung!O45<>\"\",Bearbeitung!O45,\"\")","v":""}]
[null,null,{"$f":"Bearbeitung!C46","v":3.6},{"$f":"Bearbeitung!D46","v":"Redditi patrimoniali (titoli e averi su conti)"},{"$nulls":9},{"$f":"Bearbeitung!N46","v":0},{"$f":"IF(Bearbeitung!O46<>\"\",Bearbeitung!O46,\"\")","v":""}]
[null,null,{"$f":"Bearbeitung!C47","v":3.7},{"$f":"Bearbeitung!D47","v":"Riduzione dei premi cassa malati (RIP)"},{"$nulls":9},{"$f":"Bearbeitung!N47","v":0},{"$f":"IF(Bearbeitung!O47<>\"\",Bearbeitung!O47,\"\")","v":""}]
[]
[null,"Totale entrate mensili",{"$nulls":11},{"$f":"SUM(N24:N30)","v":0}]
[]
[]
[null,"4.",{"$f":"Bearbeitung!C50","v":"Spese mensili"},{"$nulls":10},{"$f":"IF(Bearbeitung!N50<>\"\",Bearbeitung!N50,\"\")","v":"in CHF"}]
[null,null,{"$f":"Bearbeitung!C51","v":4.1},{"$f":"Bearbeitung!D51","v":"Forfait per alimenti, abbigliamento, salute, svago, telefono ecc"}]
[{"$f":"Bearbeitung!A52","v":false},{"$nulls":3},0,{"$nulls":6},{"$f":"Bearbeitung!L52","v":{"v":1200,"d":"CHF 1,200"}},null,{"$f":"Bearbeitung!N52","v":""}]
[{"$nulls":11},{"$f":"Bearbeitung!L53","v":{"v":1350,"d":"CHF 1,350"}},null,{"$f":"Bearbeitung!N53","v":""}]
[{"$nulls":4},1,{"$nulls":6},{"$f":"Bearbeitung!L54","v":{"v":1700,"d":"CHF 1,700"}},null,{"$f":"Bearbeitung!N54","v":""}]
[{"$nulls":3},{"$f":"Bearbeitung!D55","v":0},{"$f":"Bearbeitung!E55","v":"Figli fino a 10 anni:"},null,{"$f":"Bearbeitung!G55","v":{"v":400,"d":"CHF 400"}},null,{"$f":"Bearbeitung!I55","v":0},{"$f":"Bearbeitung!J55","v":"con più di 10 anni:"},null,{"$f":"Bearbeitung!L55","v":{"v":600,"d":"CHF 600"}},null,{"$f":"Bearbeitung!N55","v":0}]
[null,null,"4.1a","Aumento del 20% del forfait",{"$nulls":9},{"$f":"SUM(N37:N40)*0.2","v":0}]
[null,null,{"$f":"Bearbeitung!C56","v":4.2},{"$f":"Bearbeitung!D56","v":"Contributi di mantenimento / di sostegno"},{"$nulls":9},{"$f":"Bearbeitung!N56","v":0},{"$f":"IF(Bearbeitung!O56<>\"\",Bearbeitung!O56,\"\")","v":""}]
[null,null,{"$f":"Bearbeitung!C57","v":"4.3"},{"$f":"Bearbeitung!D57","v":"O il canone di locazione, incl. gli acconti per riscaldamento e spese accessorie"},{"$nulls":9},{"$f":"Bearbeitung!N57","v":0},{"$f":"IF(Bearbeitung!O57<>\"\",Bearbeitung!O57,\"\")","v":""}]
[null,null,{"$f":"Bearbeitung!C58","v":"4.4"},{"$f":"Bearbeitung!D58","v":"O il tasso ipotecario (senza ammortamento!)\nincl. tasse di diritto pubblico e spese di manutenzione per l'immobile"},{"$nulls":9},{"$f":"Bearbeitung!N58","v":0},{"$f":"IF(Bearbeitung!O58<>\"\",Bearbeitung!O58,\"\")","v":""}]
[null,null,{"$f":"Bearbeitung!C59","v":"4.5"},{"$f":"Bearbeitung!D59","v":"Cassa malati (assicurazione di base)"},{"$nulls":9},{"$f":"Bearbeitung!N59","v":0},{"$f":"IF(Bearbeitung!O59<>\"\",Bearbeitung!O59,\"\")","v":""}]
[null,null,{"$f":"Bearbeitung!C60","v":"4.6"},{"$f":"Bearbeitung!D60","v":"Contributi sociali, se non sono già stati dedotti dal salario"},{"$nulls":9},{"$f":"Bearbeitung!N60","v":0},{"$f":"IF(Bearbeitung!O60<>\"\",Bearbeitung!O60,\"\")","v":""}]
[null,null,{"$f":"Bearbeitung!C61","v":"4.7"},{"$f":"Bearbeitung!D61","v":"Imposte correnti (Confederazione, Cantone e Comune) convertito a 1 mese"},{"$nulls":9},{"$f":"Bearbeitung!N61","v":0},{"$f":"IF(Bearbeitung!O61<>\"\",Bearbeitung!O61,\"\")","v":""}]
[null,null,{"$f":"Bearbeitung!C62","v":"4.8"},{"$f":"Bearbeitung!D62","v":"Spese professionali necessarie per spese di trasferta"},{"$nulls":9},{"$f":"IF(Bearbeitung!A63=0,0,IF(Bearbeitung!A63=1,Bearbeitung!N64,IF(Bearbeitung!A63=2,Bearbeitung!N65,IF(Bearbeitung!A63=3,Bearbeitung!N70,IF(Bearbeitung!A63=4,Bearbeitung!N71,IF(Bearbeitung!A63=5,Bearbeitung!N72,0))))))","v":0}]
[null,null,{"$f":"Bearbeitung!C74","v":"4.9"},{"$f":"Bearbeitung!D74","v":"Spese professionali necessarie per vitto fuori casa"},{"$nulls":9},{"$f":"Bearbeitung!N74","v":0},{"$f":"IF(Bearbeitung!O74<>\"\",Bearbeitung!O74,\"\")","v":""}]
[null,null,{"$f":"Bearbeitung!C75","v":"4.10"},{"$f":"Bearbeitung!D75","v":"Spese di locazione / leasing per oggetti indispensabili per l'esercizio dell'attività lucrativa"},{"$nulls":9},{"$f":"Bearbeitung!N75","v":0},{"$f":"IF(Bearbeitung!O75<>\"\",Bearbeitung!O75,\"\")","v":""}]
[null,null,{"$f":"Bearbeitung!C76","v":"4.11"},{"$f":"Bearbeitung!D76","v":"Rimborsi di mutui e debiti"},{"$nulls":9},{"$f":"Bearbeitung!N76","v":0},{"$f":"IF(Bearbeitung!O76<>\"\",Bearbeitung!O76,\"\")","v":""}]
[null,null,{"$f":"Bearbeitung!C77","v":"4.12"},{"$f":"Bearbeitung!D77","v":"Altre uscite"},{"$nulls":9},{"$f":"Bearbeitung!N77","v":0},{"$f":"IF(Bearbeitung!O77<>\"\",Bearbeitung!O77,\"\")","v":""}]
[{"$nulls":3},{"$f":"Bearbeitung!D78","v":" "},{"$nulls":10},{"$f":"IF(Bearbeitung!O78<>\"\",Bearbeitung!O78,\"\")","v":""}]
[]
[null,"Totale spese mensili",{"$nulls":11},{"$f":"SUM(N37:N53)","v":0}]
[]
[null,"Panoramica di tutti gli importi totali al mese",{"$nulls":11},"in CHF"]
[null,null,"1.","Proventi",{"$nulls":3}," +",{"$nulls":5},{"$f":"N32","v":{"v":0,"d":"0 "}}]
[null,null,"2.","Spese",{"$nulls":3}," -",{"$nulls":5},{"$f":"N55","v":{"v":0,"d":"0 "}}]
[null,null,"3.","Valori patrimoniali",{"$nulls":9},{"$f":"Bearbeitung!N91","v":{"v":0,"d":"0 "}}]
[null,null,"4.","Debiti",{"$nulls":9},{"$f":"Bearbeitung!N110","v":{"v":0,"d":"0 "}}]
[null,"Saldo (negativo = ammanco, positivo = eccedenza)",{"$nulls":11},{"$f":"SUM(N58-N59)","v":{"v":0,"d":"0 "}}]
[]
[]
[null,"Osservazioni"]
[null,{"$f":"IF(Bearbeitung!B114<>\"\",Bearbeitung!B114,\"\")","v":""}]

{"sheet":"guida","index":3,"n_rows":46,"n_cols":5,"rows_kept":46,"merged":[[0,0,0,1],[0,3,0,4],[1,0,1,4],[3,0,3,4],[4,0,4,4],[5,0,5,4],[6,1,6,4],[7,1,7,4],[8,1,8,3],[9,0,9,4],[10,1,10,4],[11,1,11,4],[12,1,12,4],[13,1,13,4],[14,1,14,4],[15,1,15,4],[16,1,16,4],[17,1,17,4],[18,1,18,4],[19,1,19,3],[20,0,20,4],[21,1,21,3],[22,1,22,3],[23,1,23,3],[24,1,24,3],[25,1,25,3],[26,1,26,3],[27,1,27,3],[28,1,28,3],[29,1,29,3],[30,1,30,3],[31,1,31,3],[32,1,32,3],[33,1,33,3],[34,1,34,4],[35,1,35,3],[36,0,36,4],[37,1,37,4],[38,1,38,4],[39,1,39,4],[40,1,40,4],[41,1,41,4],[42,1,42,3],[43,0,43,4],[44,1,44,4],[45,1,45,4]]}
[{"$nulls":3},"Steuerverwaltung des Kantons Graubünden  \nAdministraziun da taglia dal Chantun Grischun     \nAmministrazione imposte del Cantone dei Grigioni "]
["Abteilung Rechnungswesen, Steinbruchstrasse 18, CH-7001 Chur    "]
[]
["Guida per la verifica della situazione patrimoniale e di reddito"]
["Per tutte le posizioni compilate nel modulo \"Verifica della situazione patrimoniale e di reddito\" devono essere inoltrati relativi giustificativi e documenti quali prove. Non è ammessa la deduzione di spese in assenza di documenti giustificativi. L'elenco sottostante (non esaustivo) comprende eventuali prove disponibili."]
["Numero di persone che vivono nella stessa economia domestica"]
["N.","Indicazioni/osservazioni"]
["2","Nomi dei figli: \nOccorre indicare i figli del contribuente che ad oggi hanno meno di 18 anni. \nI figli del partner possono essere indicati se anche il partner rende nota la sua situazione finanziaria nel presente questionario."]
[]
["Proventi mensili"]
["N.","Documentazione da inoltrare (non inviare originali)"]
["3","Dichiarazione d'imposta dell'anno precedente incl. allegati"]
["3.1","Certificato di salario dell'anno precedente incl. conteggi del salario degli ultimi 3 mesi"]
[3.2,"Giustificativi di entrata"]
[3.3,"Giustificativi di entrata"]
[3.4,"Giustificativi di entrata"]
[3.5,"Giustificativi di entrata"]
[3.6,"Giustificativi di entrata"]
[3.7,"Giustificativi di entrata"]
[]
["Spese mensili"]
["N.","Documentazione da inoltrare (non inviare originali)",null,null,"Spiegazioni"]
["4.1",{"$nulls":3},"L'importo di base per coniugi, unioni domestiche registrate e concubinati viene ripartito tra i partner in ragione della metà ciascuno. \nLa quota del/la coniuge/convivente/concubino/a però viene tenuta in considerazione solo se questo/a rende nota la sua situazione finanziaria. "]
[4.2,"Alimenti - sentenza di divorzio o di separazione passata in giudicato e ricevuta di pagamento degli ultimi 3 mesi"]
[4.3,"Contratto di locazione",null,null,"Spese di alloggio in caso di locazione, composte da:\n\n- canone di locazione effettivo, però senza spese dell'importo di base (cfr. n. 4.1), perché sono già state tenute in considerazione. \n\n- spese accessorie sono spese per il riscaldamento, l'acqua, il custode, la manutenzione dei dintorni che vengono computate e di solito vengono ripartite su 12 mesi.\n\nIn caso di comunione domestica (inclusi i figli maggiorenni con reddito proprio) le spese di alloggio devono essere considerate pro quota in parti uguali."]
[4.4,"Contratto ipotecario, compresi estratti bancari degli ultimi 3 conteggi degli interessi pagati                       Giustificativi di pagamento per tasse di diritto pubblico e spese di manutenzione",null,null,"Spese di alloggio per proprietà a uso abitativo personale, composte da:\n\n- tasso ipotecario senza ammortamenti e senza spese dell'importo di base (cfr. n. 4.1), perché sono già state tenute in considerazione.\n\n- spese per immobili, come riscaldamento, acqua, manutenzione, riparazioni, pulizie, assicurazioni, tributi pubblici, ripartiti in media su 12 mesi. \n\nIn caso di comunione domestica (inclusi i figli maggiorenni con reddito proprio) le spese di alloggio devono essere considerate pro quota in parti uguali."]
[4.5,"Polizza di cassa malati più recente",null,null,"Solo assicurazione di base, assicurazione complementare rientra nell'importo di base, cfr. n. 4.1. \n\nPer quanto riguarda la franchigia e spese mediche a proprio carico, cfr. n. 4.12.\n"]
["4.6","Giustificativi di pagamento"]
["4.7","Conteggi delle imposte del periodo fiscale attuale",null,null,"Convertito a 1 mese, cioè \n(somma delle fatture d'imposta / 12)"]
["4.8","Biglietti, abbonamenti, giustificativi delle tratte, documentazione per la prova del criterio di pertinenza 1), ecc.",null,null,"Se lavora fuori casa, selezioni il \"mezzo di trasporto\" che utilizza:\n  - In caso di trasporto pubblico o di utilizzo di un veicolo privato senza comprovata competenza, inserire i costi effettivi risp. calcolati nel campo grigio accanto al campo di selezione.\n\n  - In caso di utilizzo di un veicolo privato con il livello di competenza, inserire i chilometri per tratta, il numero di viaggi al giorno, nonché il numero medio di giorni al mese in cui ci si reca al lavoro (max. 20 giorni).\n\n  - Se vi recate al lavoro in moto, in bicicletta o a piedi, spuntate l'apposita casella senza inserire ulteriori informazioni."]
["4.9",{"$nulls":3},"Possono essere conteggiati (volume di lavoro pari al 100%):\n - 10 CHF al giorno senza riduzione per il vitto\n - 5 CHF al giorno con riduzione per il vitto\n - max. 20 giorni al mese"]
["4.10","Contratti di affitto e di leasing\nComprova del criterio di pertinenza )1",null,null,"Se il criterio di pertinenza )1 non è soddisfatto non è possibile tenere conto di un leasing/affitto\n\nSe il criterio di pertinenza )1 è soddisfatto, rate del leasing o canoni di affitto vengono tenuti in considerazione fino a un valore massimo del leasing/di affitto di CHF 30'000."]
["4.11","Tassazioni per i debiti fiscali nonché \ncontratti e gli ultimi 3 giustificativi di pagamento",null,null,"Tra i rimborsi accettati rientrano ad es.:\n - vecchi debiti fiscali \n - mutui di terzi (privati), a seconda della causa del debito \n Tra i rimborsi non accettati rientrano ad es.:\n - debiti da carte di credito, debiti dall'importo di base\n - debiti dovuti al consumo di beni \"di lusso\"\n"]
["4.12","Giustificativi di pagamento",null,null,"Possono essere conteggiate:\n- spese mediche non saldate non coperte dalla cassa malati (ad es. a causa della franchigia, aliquota percentuale)\n\n- spese per cure dentarie (solo fatture non saldate con giustificativi di rimborso)\n\n- formazione dei figli (TP, materiale scolastico) fino al termine della prima formazione scolastica/apprendistato \n\nNon possono essere conteggiate (elenco non esaustivo):\n- franchigia (ma solo spese mediche concrete nel quadro della franchigia)\n\n- spese aventi carattere di \"lusso\" (ad es. sigarette, animali domestici, hobby, quote sociali, ecc.)\n\n- spese per scuole private, se sono disponibili scuole pubbliche dello stesso tipo\n\n- spese per visite dei figli nei fine settimana"]
[null,"\n)1 Il criterio di pertinenza è soddisfatto se: \n- non vi sono TP oppure il loro uso non è esigibile (ad es. malattia, handicap, orari di lavoro) oppure \n- l'uso dell'automobile privata permette di risparmiare più di un'ora di tempo al giorno."]
[]
["Valori patrimoniali"]
["N.","Documentazione da inoltrare (non inviare originali)"]
["5.1","Certificati di deposito/estratti di conti degli ultimi 3 mesi"]
[5.2,"Polizza assicurativa più recente"]
[5.3,"Stima ufficiale più recente"]
[5.4,"Giustificativi"]
[]
["Debiti"]
["N.","Documentazione da inoltrare (non inviare originali)"]
["6.1","Contratti"]

{"sheet":"Sachbearbeiter","index":4,"n_rows":9,"n_cols":5,"rows_kept":9,"hidden":true}
["Kurzzeichen","Sachbearbeiter","Tel.","Fax","Mail"]
["Cr","Cris Raselli","081 257 34 78","081 257 20 14","Cris.Raselli@stv.gr.ch"]
["Gr","Gladys Rösli","081 257 34 94","081 257 20 14","Gladys.Roesli@stv.gr.ch"]
["Kd","Katja Duff","081 257 34 86","081 257 20 14","Katja.Duff@stv.gr.ch"]
["Ft","Fabian Tschuor","081 257 34 96","081 257 20 14","Fabian.Tschuor@stv.gr.ch"]
["Ps","Pascale Schumacher ","081 257 34 98","081 257 20 14","Pascale.Schumacher@stv.gr.ch"]
["Gg","Gion Giovannoni","081 257 34 70","081 257 20 14","Gion.Giovannoni@stv.gr.ch"]
["As","Alexander Schlegel","081 257 34 62","081 257 20 14","Alexander.Schlegel@stv.gr.ch"]
["Rw","Rechnungswesen","081 257 33 18","081 257 20 14","rechnungswesen@stv.gr.ch"]

{"sheet":"Textkonserven","index":5,"n_rows":5,"n_cols":11,"rows_kept":5,"hidden":true}
["Sachgebiet \na=amtl. Verteidig.\nu=URP\nv=VS\nE=Erlass","Dokumententitel Fragebogen","Dokumententitel Berechnungsformular","Referenz","Spaltentitel","Berechnungsübersicht Titel in CHF","Berechnungsübersicht Titel in %","Berechnungsüberisicht Titel Anteil am Manko","Überschrift \"Personalien\"","Fusszeile bzgl. \"Forderungsverzicht\" Zeile-1","Fusszeile bzgl. \"Forderungsverzicht\" Zeile-2"]
["a","Verifica del patrimonio e dei proventi in relazione al rimborso delle spese per la difesa d'ufficio","Calcolo del patrimonio e dei proventi in relazione al rimborso delle spese per la difesa d'ufficio","Dossier no.","Richiedente difesa d'ufficio \nCHF","Quota del richiedente della difesa d'ufficio in CHF","Quota del richiedente della difesa d'ufficio in %","Quota dell'avanzo collettivo del richiedente della difesa d'ufficio in CHF, rispettivamente disavanzo in relazione al reddito","Dati personali del richiedente della difesa d'ufficio"]
["u","Verifica della situazione patrimoniale e di reddito in relazione al rimborso delle spese per il patrocinio gratuito (RSPG)","Calcolo della situazione patrimoniale e di reddito in relazione al rimborso delle spese per il patrocinio gratuito (RSPG)","Dossier n.","parte tenuta RSPG CHF","Quota della \nRSPG in CHF","Quota della RSPG \nin %","Quota della RSPG in CHF all'eccedenza risp. all'ammanco comune in rapporto al reddito","Dati personali parte tenuta a RSPG"]
["v","Verifica della situazione patrimoniale e di reddito in relazione all'esecuzione di attestati di carenza di beni (ACB)","Calcolo della situazione patrimoniale e di reddito in relazione all'esecuzione di attestati di carenza di beni (ACB)","Registro n.","Titolare dell'ACB CHF","Quota dell'ACB\nin CHF","Quota dell'ACB\nin CHF","Quota della parte contro la quale è stato emesso un ACB in CHF all'eccedenza risp. all'ammanco comune in rapporto al reddito","Dati personali parte ACB","Rinunciano i creditori (nono privilegiati) ai loro crediti? Sì / No:","(Se sì, allegare piano di risanamento e documenti giustificativi) "]
["e","Verifica della situazione patrimoniale e di reddito in relazione a una domanda di condono per crediti fiscali (DCCF)","Calcolo della situazione patrimoniale e di reddito in relazione a una domanda di condono per crediti fiscali (DCCF)","Registro n.","Contribuente CHF","Quota contribuente \nin CHF","Quota contribuente \nin %","Quota del contribuente in CHF all'eccedenza risp. all'ammanco comune in rapporto al reddito","Dati personali contribuente","Rinunciano i creditori (nono privilegiati) ai loro crediti? Sì / No:","(Se sì, allegare piano di risanamento e documenti giustificativi) "]